[Event "Early-Titled-Tuesday-Blitz-August-29-2023"]
[Site "Chess.com"]
[Date "2023.08.29"]
[Round "7"]
[White "Angry_Twin"]
[Black "baki83"]
[Result "1-0"]
[WhiteElo "2965"]
[BlackElo "2837"]
[TimeControl "180+1"]
[EndTime "9:18:09 PDT"]
[Termination "Angry_Twin won on time"]

1. e4 {[%clk 0:02:50.7]} 1... c5 {[%clk 0:02:59.5]} 2. Nf3 {[%clk 0:02:49.3]}
2... d6 {[%clk 0:02:59.6]} 3. Bb5+ {[%clk 0:02:48.8]} 3... Bd7 {[%clk
0:02:59.4]} 4. Bxd7+ {[%clk 0:02:48.3]} 4... Nxd7 {[%clk 0:02:59.3]} 5. O-O
{[%clk 0:02:47.7]} 5... e6 {[%clk 0:02:57.2]} 6. b3 {[%clk 0:02:46.1]} 6... Be7
{[%clk 0:02:57.1]} 7. Bb2 {[%clk 0:02:45.4]} 7... Bf6 {[%clk 0:02:57.4]} 8. c3
{[%clk 0:02:42.4]} 8... Ne7 {[%clk 0:02:56.9]} 9. d4 {[%clk 0:02:42.6]} 9...
cxd4 {[%clk 0:02:34.9]} 10. cxd4 {[%clk 0:02:42.8]} 10... Nc6 {[%clk 0:02:35.2]}
11. Nbd2 {[%clk 0:02:38.4]} 11... O-O {[%clk 0:02:34]} 12. Re1 {[%clk
0:02:38.6]} 12... Rc8 {[%clk 0:02:28.6]} 13. Nc4 {[%clk 0:02:17.1]} 13... Nb6
{[%clk 0:02:28.7]} 14. Ne3 {[%clk 0:02:14.1]} 14... d5 {[%clk 0:02:16.5]} 15. e5
{[%clk 0:01:59.3]} 15... Be7 {[%clk 0:02:16.4]} 16. a3 {[%clk 0:01:59.6]} 16...
Na5 {[%clk 0:02:14.2]} 17. Qd3 {[%clk 0:01:56.3]} 17... Qd7 {[%clk 0:02:09.7]}
18. h4 {[%clk 0:01:54.7]} 18... a6 {[%clk 0:02:04.5]} 19. a4 {[%clk 0:01:51.1]}
19... Nc6 {[%clk 0:02:01.3]} 20. h5 {[%clk 0:01:44.6]} 20... Nb4 {[%clk
0:01:42.2]} 21. Qd2 {[%clk 0:01:44.3]} 21... a5 {[%clk 0:01:42.7]} 22. h6 {[%clk
0:01:41.5]} 22... g6 {[%clk 0:01:43]} 23. Rac1 {[%clk 0:01:37.9]} 23... Rxc1
{[%clk 0:01:42]} 24. Rxc1 {[%clk 0:01:38.8]} 24... Rc8 {[%clk 0:01:41.7]} 25.
Ng4 {[%clk 0:01:28.2]} 25... Rxc1+ {[%clk 0:01:31.7]} 26. Bxc1 {[%clk
0:01:28.2]} 26... Qd8 {[%clk 0:01:16.6]} 27. Qe3 {[%clk 0:01:19.9]} 27... Nd7
{[%clk 0:00:57]} 28. Bd2 {[%clk 0:00:32.5]} 28... Qc7 {[%clk 0:00:57]} 29. Qc3
{[%clk 0:00:32.8]} 29... Qxc3 {[%clk 0:00:56.1]} 30. Bxc3 {[%clk 0:00:33.7]}
30... Nc6 {[%clk 0:00:54.9]} 31. Kf1 {[%clk 0:00:30]} 31... b6 {[%clk 0:00:48]}
32. Bd2 {[%clk 0:00:27.5]} 32... f5 {[%clk 0:00:33.9]} 33. exf6 {[%clk
0:00:23.2]} 33... Nxf6 {[%clk 0:00:34.1]} 34. Nge5 {[%clk 0:00:20.5]} 34... Nxe5
{[%clk 0:00:34.2]} 35. Nxe5 {[%clk 0:00:21.4]} 35... Bd6 {[%clk 0:00:23.5]} 36.
Nd3 {[%clk 0:00:16.3]} 36... Ne4 {[%clk 0:00:18]} 37. Be3 {[%clk 0:00:16.6]}
37... Kf7 {[%clk 0:00:17.3]} 38. Ke2 {[%clk 0:00:16.5]} 38... Ke7 {[%clk
0:00:17]} 39. f3 {[%clk 0:00:07]} 39... Ng3+ {[%clk 0:00:17]} 40. Kd2 {[%clk
0:00:07.3]} 40... Nf1+ {[%clk 0:00:15.9]} 41. Ke2 {[%clk 0:00:07.4]} 41... Nxe3
{[%clk 0:00:14]} 42. Kxe3 {[%clk 0:00:08.3]} 42... Kf6 {[%clk 0:00:14.5]} 43. f4
{[%clk 0:00:09]} 43... g5 {[%clk 0:00:12.9]} 44. g4 {[%clk 0:00:08.1]} 44... Kg6
{[%clk 0:00:12.9]} 45. fxg5 {[%clk 0:00:02.9]} 45... Kxg5 {[%clk 0:00:13.4]} 46.
Kf3 {[%clk 0:00:02.7]} 46... Kxh6 {[%clk 0:00:13.9]} 47. Ne1 {[%clk 0:00:03]}
47... Kg5 {[%clk 0:00:13]} 48. Ng2 {[%clk 0:00:03.7]} 48... Bb4 {[%clk
0:00:11.7]} 49. Ne3 {[%clk 0:00:02.5]} 49... Bc3 {[%clk 0:00:11.8]} 50. Nc2
{[%clk 0:00:03.2]} 50... Bb2 {[%clk 0:00:11.6]} 51. Kg3 {[%clk 0:00:03.6]} 51...
Bc3 {[%clk 0:00:09.7]} 52. Kf3 {[%clk 0:00:04.2]} 52... Bd2 {[%clk 0:00:04.8]}
53. Kg3 {[%clk 0:00:04.3]} 53... Bf4+ {[%clk 0:00:04.4]} 54. Kf3 {[%clk
0:00:05]} 54... Bc1 {[%clk 0:00:03.7]} 55. Ne1 {[%clk 0:00:04.6]} 55... Bb2
{[%clk 0:00:03.5]} 56. Nc2 {[%clk 0:00:05.2]} 56... Bc3 {[%clk 0:00:03.6]} 57.
Kg3 {[%clk 0:00:05.1]} 57... Kf6 {[%clk 0:00:03.1]} 58. Kf4 {[%clk 0:00:04.2]}
58... e5+ {[%clk 0:00:03.6]} 59. dxe5+ {[%clk 0:00:04.7]} 59... Bxe5+ {[%clk
0:00:04.1]} 60. Kf3 {[%clk 0:00:05.3]} 60... Bc3 {[%clk 0:00:03.3]} 61. Ne3
{[%clk 0:00:05.3]} 61... Ke5 {[%clk 0:00:03.8]} 62. Nf5 {[%clk 0:00:05.7]} 62...
d4 {[%clk 0:00:03.6]} 63. Ng3 {[%clk 0:00:04.8]} 63... Be1 {[%clk 0:00:03.1]}
64. Nf1 {[%clk 0:00:04.5]} 64... Bh4 {[%clk 0:00:01.9]} 65. Nd2 {[%clk 0:00:04]}
65... Bd8 {[%clk 0:00:01.9]} 66. Nc4+ {[%clk 0:00:04]} 66... Kd5 {[%clk
0:00:02.3]} 67. Nd2 {[%clk 0:00:03.1]} 67... Bg5 {[%clk 0:00:01.1]} 68. Ne4
{[%clk 0:00:03.4]} 1-0

[Event "Early-Titled-Tuesday-Blitz-August-29-2023"]
[Site "Chess.com"]
[Date "2023.08.29"]
[Round "7"]
[White "Jackalhead_Anubis"]
[Black "Khromkin"]
[Result "0-1"]
[WhiteElo "2428"]
[BlackElo "2336"]
[TimeControl "180+1"]
[EndTime "9:18:10 PDT"]
[Termination "Khromkin won by checkmate"]

1. e4 {[%clk 0:03:00.3]} 1... c5 {[%clk 0:02:54.7]} 2. Nf3 {[%clk 0:03:00]} 2...
Nc6 {[%clk 0:02:55.2]} 3. Bb5 {[%clk 0:02:59]} 3... g6 {[%clk 0:02:55.2]} 4. O-O
{[%clk 0:02:57]} 4... Bg7 {[%clk 0:02:55.5]} 5. c3 {[%clk 0:02:57.5]} 5... Nf6
{[%clk 0:02:55.6]} 6. e5 {[%clk 0:02:55.7]} 6... Nd5 {[%clk 0:02:55.2]} 7. d4
{[%clk 0:02:54.8]} 7... O-O {[%clk 0:02:53.5]} 8. dxc5 {[%clk 0:02:47.8]} 8...
Nc7 {[%clk 0:02:43.2]} 9. Bxc6 {[%clk 0:02:46.1]} 9... dxc6 {[%clk 0:02:43.7]}
10. Bf4 {[%clk 0:02:43.6]} 10... Bg4 {[%clk 0:02:38.3]} 11. Nbd2 {[%clk
0:02:40.4]} 11... Ne6 {[%clk 0:02:38]} 12. Be3 {[%clk 0:02:23.9]} 12... Bxe5
{[%clk 0:02:35.4]} 13. Qb3 {[%clk 0:02:23.8]} 13... Bf4 {[%clk 0:02:12.1]} 14.
Bxf4 {[%clk 0:01:51.6]} 14... Nxf4 {[%clk 0:02:11.2]} 15. Qb4 {[%clk 0:01:50.1]}
15... Qc7 {[%clk 0:01:43.3]} 16. g3 {[%clk 0:01:24.5]} 16... Bxf3 {[%clk
0:01:29.9]} 17. Nxf3 {[%clk 0:01:15.2]} 17... Nd5 {[%clk 0:01:29.6]} 18. Qa3
{[%clk 0:01:11.4]} 18... a5 {[%clk 0:01:19.1]} 19. Rfe1 {[%clk 0:01:09.7]} 19...
Rfe8 {[%clk 0:01:17]} 20. Re5 {[%clk 0:00:59.8]} 20... e6 {[%clk 0:01:11.7]} 21.
Rae1 {[%clk 0:00:58.4]} 21... Re7 {[%clk 0:00:55.4]} 22. Qb3 {[%clk 0:00:50.2]}
22... Rae8 {[%clk 0:00:52.9]} 23. a3 {[%clk 0:00:48.1]} 23... f6 {[%clk
0:00:52.9]} 24. R5e2 {[%clk 0:00:46.2]} 24... Qc8 {[%clk 0:00:37.6]} 25. Nd4
{[%clk 0:00:36.1]} 25... e5 {[%clk 0:00:36]} 26. Nf3 {[%clk 0:00:34.1]} 26...
Kg7 {[%clk 0:00:35.8]} 27. c4 {[%clk 0:00:33.2]} 27... Nc7 {[%clk 0:00:34.9]}
28. Qc3 {[%clk 0:00:32.8]} 28... Qa8 {[%clk 0:00:28.7]} 29. Nd2 {[%clk
0:00:30.7]} 29... Ne6 {[%clk 0:00:28.1]} 30. f4 {[%clk 0:00:26.1]} 30... Nd4
{[%clk 0:00:25.9]} 31. Re3 {[%clk 0:00:24.2]} 31... Qc8 {[%clk 0:00:23.4]} 32.
fxe5 {[%clk 0:00:23.5]} 32... fxe5 {[%clk 0:00:22.5]} 33. Rxe5 {[%clk 0:00:21]}
33... Rxe5 {[%clk 0:00:20.5]} 34. Qxd4 {[%clk 0:00:20.5]} 34... Qf5 {[%clk
0:00:18.4]} 35. Nf3 {[%clk 0:00:18.2]} 35... Qxf3 {[%clk 0:00:11.1]} 36. Rxe5
{[%clk 0:00:18]} 36... Rxe5 {[%clk 0:00:11.5]} 37. Qxe5+ {[%clk 0:00:18.8]}
37... Kh6 {[%clk 0:00:10.9]} 38. Qf4+ {[%clk 0:00:17.6]} 38... Qxf4 {[%clk
0:00:10.8]} 39. gxf4 {[%clk 0:00:18.5]} 39... Kh5 {[%clk 0:00:10.9]} 40. h3
{[%clk 0:00:18.8]} 40... a4 {[%clk 0:00:10.1]} 41. Kg2 {[%clk 0:00:18.6]} 41...
Kh4 {[%clk 0:00:07.6]} 42. Kh2 {[%clk 0:00:18.9]} 42... Kh5 {[%clk 0:00:02.4]}
43. Kg3 {[%clk 0:00:18.5]} 43... Kh6 {[%clk 0:00:03]} 44. Kg4 {[%clk 0:00:18.1]}
44... Kg7 {[%clk 0:00:03.4]} 45. Kg5 {[%clk 0:00:18.1]} 45... h6+ {[%clk
0:00:03.4]} 46. Kg4 {[%clk 0:00:18.4]} 46... Kf6 {[%clk 0:00:04]} 47. h4 {[%clk
0:00:18.4]} 47... h5+ {[%clk 0:00:04.4]} 48. Kg3 {[%clk 0:00:18.7]} 48... Kf5
{[%clk 0:00:04.1]} 49. Kf3 {[%clk 0:00:18.8]} 49... Kf6 {[%clk 0:00:04.8]} 50.
Ke3 {[%clk 0:00:18.7]} 50... Ke6 {[%clk 0:00:05.4]} 51. Ke4 {[%clk 0:00:19.1]}
51... Kf6 {[%clk 0:00:06]} 52. Kd4 {[%clk 0:00:17.6]} 52... Kf5 {[%clk
0:00:06.5]} 53. Kc3 {[%clk 0:00:17.3]} 53... Kxf4 {[%clk 0:00:06.4]} 54. Kb4
{[%clk 0:00:18.2]} 54... g5 {[%clk 0:00:06.9]} 55. hxg5 {[%clk 0:00:17.5]} 55...
Kxg5 {[%clk 0:00:07.2]} 56. Kxa4 {[%clk 0:00:17.3]} 56... h4 {[%clk 0:00:07.8]}
57. Ka5 {[%clk 0:00:18.2]} 57... h3 {[%clk 0:00:08.5]} 58. Kb6 {[%clk
0:00:18.7]} 58... h2 {[%clk 0:00:09.2]} 59. Kxb7 {[%clk 0:00:19.4]} 59... h1=Q
{[%clk 0:00:09.9]} 60. a4 {[%clk 0:00:19.9]} 60... Qe4 {[%clk 0:00:09.2]} 61. a5
{[%clk 0:00:20]} 61... Qxc4 {[%clk 0:00:09.7]} 62. a6 {[%clk 0:00:20.5]} 62...
Qb5+ {[%clk 0:00:10.2]} 63. Ka7 {[%clk 0:00:19.8]} 63... Qxc5+ {[%clk
0:00:10.8]} 64. Kb8 {[%clk 0:00:19.9]} 64... Qb5+ {[%clk 0:00:10.6]} 65. Ka8
{[%clk 0:00:20]} 65... c5 {[%clk 0:00:10.8]} 66. a7 {[%clk 0:00:19]} 66... Qa6
{[%clk 0:00:09.4]} 67. Kb8 {[%clk 0:00:18.4]} 67... Qb6+ {[%clk 0:00:09.9]} 68.
Ka8 {[%clk 0:00:18.7]} 68... Qc7 {[%clk 0:00:09.5]} 69. b4 {[%clk 0:00:18.1]}
69... Qc8# {[%clk 0:00:10.1]} 0-1

[Event "Early-Titled-Tuesday-Blitz-August-29-2023"]
[Site "Chess.com"]
[Date "2023.08.29"]
[Round "7"]
[White "sorch29"]
[Black "Semetey"]
[Result "0-1"]
[WhiteElo "2361"]
[BlackElo "2594"]
[TimeControl "180+1"]
[EndTime "9:18:13 PDT"]
[Termination "Semetey won by resignation"]

1. Nf3 {[%clk 0:03:00.9]} 1... d5 {[%clk 0:02:56.5]} 2. d4 {[%clk 0:02:59.2]}
2... Nf6 {[%clk 0:02:55.5]} 3. c4 {[%clk 0:02:59.4]} 3... e6 {[%clk 0:02:55]} 4.
g3 {[%clk 0:03:00]} 4... Bb4+ {[%clk 0:02:54]} 5. Bd2 {[%clk 0:02:59.7]} 5...
Be7 {[%clk 0:02:53.7]} 6. Bg2 {[%clk 0:02:59.6]} 6... O-O {[%clk 0:02:51.2]} 7.
O-O {[%clk 0:03:00.2]} 7... Nbd7 {[%clk 0:02:51.6]} 8. Qc2 {[%clk 0:02:58.9]}
8... Ne4 {[%clk 0:02:49.2]} 9. Nc3 {[%clk 0:02:32.8]} 9... Nxd2 {[%clk
0:02:42.9]} 10. Nxd2 {[%clk 0:02:29.4]} 10... dxc4 {[%clk 0:02:37.9]} 11. Nxc4
{[%clk 0:02:30.3]} 11... c5 {[%clk 0:02:37.4]} 12. dxc5 {[%clk 0:02:14.8]} 12...
Nxc5 {[%clk 0:02:36.3]} 13. Rfd1 {[%clk 0:02:14.8]} 13... Qe8 {[%clk 0:02:29.8]}
14. b4 {[%clk 0:02:01.7]} 14... Nd7 {[%clk 0:02:11.9]} 15. Nb5 {[%clk
0:01:49.5]} 15... Qd8 {[%clk 0:01:55]} 16. Nbd6 {[%clk 0:01:45.6]} 16... Rb8
{[%clk 0:01:48.2]} 17. Qd2 {[%clk 0:01:33.4]} 17... Nb6 {[%clk 0:01:42.2]} 18.
b5 {[%clk 0:01:18.1]} 18... Nxc4 {[%clk 0:01:06.3]} 19. Nxc4 {[%clk 0:01:16.4]}
19... Qxd2 {[%clk 0:01:05.8]} 20. Rxd2 {[%clk 0:01:15]} 20... Rd8 {[%clk
0:00:59.1]} 21. Rxd8+ {[%clk 0:01:14.2]} 21... Bxd8 {[%clk 0:00:59.2]} 22. Rd1
{[%clk 0:01:14.9]} 22... Bc7 {[%clk 0:00:56.9]} 23. a4 {[%clk 0:01:00.2]} 23...
b6 {[%clk 0:00:47.8]} 24. f4 {[%clk 0:00:55.8]} 24... Kf8 {[%clk 0:00:45.6]} 25.
Bc6 {[%clk 0:00:46]} 25... Bb7 {[%clk 0:00:23.6]} 26. Bxb7 {[%clk 0:00:24.5]}
26... Rxb7 {[%clk 0:00:17.2]} 27. Kf2 {[%clk 0:00:23.3]} 27... Ke7 {[%clk
0:00:16.8]} 28. e4 {[%clk 0:00:22.9]} 28... f6 {[%clk 0:00:16.4]} 29. Ke3 {[%clk
0:00:22.7]} 29... Bb8 {[%clk 0:00:15.7]} 30. e5 {[%clk 0:00:20.2]} 30... fxe5
{[%clk 0:00:15.1]} 31. fxe5 {[%clk 0:00:20.9]} 31... Rc7 {[%clk 0:00:15.6]} 32.
Rd4 {[%clk 0:00:19.8]} 32... Rc5 {[%clk 0:00:15.6]} 33. Ke4 {[%clk 0:00:18.4]}
33... Bc7 {[%clk 0:00:14.2]} 34. h4 {[%clk 0:00:11.5]} 34... h5 {[%clk
0:00:13.8]} 35. Nd6 {[%clk 0:00:09.8]} 35... Bxd6 {[%clk 0:00:12.2]} 36. exd6+
{[%clk 0:00:10.7]} 36... Kd7 {[%clk 0:00:12.3]} 37. Rd3 {[%clk 0:00:03.4]} 37...
Rf5 {[%clk 0:00:10.5]} 38. Rc3 {[%clk 0:00:02.7]} 38... Kxd6 {[%clk 0:00:10.2]}
39. Rd3+ {[%clk 0:00:03.3]} 39... Rd5 {[%clk 0:00:08.5]} 40. Rc3 {[%clk
0:00:03.2]} 40... g6 {[%clk 0:00:07.9]} 41. Rf3 {[%clk 0:00:03.7]} 41... Rf5
{[%clk 0:00:07.7]} 42. Rc3 {[%clk 0:00:03.6]} 42... Rc5 {[%clk 0:00:07.7]} 43.
Rf3 {[%clk 0:00:03.8]} 43... Ke7 {[%clk 0:00:08]} 44. Rd3 {[%clk 0:00:03.5]}
44... Rc4+ {[%clk 0:00:08.1]} 45. Ke5 {[%clk 0:00:03.7]} 45... Rc5+ {[%clk
0:00:06.2]} 46. Ke4 {[%clk 0:00:03.5]} 46... Kf6 {[%clk 0:00:06.1]} 47. Rf3+
{[%clk 0:00:03.9]} 47... Rf5 {[%clk 0:00:06.2]} 48. Rd3 {[%clk 0:00:04.7]} 48...
Re5+ {[%clk 0:00:06.7]} 49. Kf4 {[%clk 0:00:04.1]} 49... Rd5 {[%clk 0:00:07]}
50. Rc3 {[%clk 0:00:04]} 50... Rd4+ {[%clk 0:00:07.3]} 51. Ke3 {[%clk
0:00:02.6]} 51... Rxa4 {[%clk 0:00:08.2]} 52. Rc7 {[%clk 0:00:03]} 52... Ra5
{[%clk 0:00:06.8]} 53. Rb7 {[%clk 0:00:02.7]} 53... Rxb5 {[%clk 0:00:06.9]} 54.
Rxa7 {[%clk 0:00:03.2]} 54... Ke5 {[%clk 0:00:06.6]} 55. Rg7 {[%clk 0:00:02.6]}
55... Rb3+ {[%clk 0:00:06.6]} 56. Kf2 {[%clk 0:00:03.2]} 56... Kf5 {[%clk
0:00:06.4]} 57. Rg8 {[%clk 0:00:02.9]} 57... b5 {[%clk 0:00:06.1]} 58. Rg7
{[%clk 0:00:03.5]} 58... b4 {[%clk 0:00:05.8]} 59. Rg8 {[%clk 0:00:04.1]} 59...
Rc3 {[%clk 0:00:06.1]} 60. Rb8 {[%clk 0:00:03.7]} 60... b3 {[%clk 0:00:05.8]}
61. Rb5+ {[%clk 0:00:03.6]} 61... e5 {[%clk 0:00:06.2]} 62. Rb4 {[%clk
0:00:03.5]} 62... Rc2+ {[%clk 0:00:05.7]} 63. Kf3 {[%clk 0:00:03.3]} 63... Rb2
{[%clk 0:00:05.6]} 64. Rb5 {[%clk 0:00:04]} 64... Rb1 {[%clk 0:00:05.8]} 65. Rc5
{[%clk 0:00:03.9]} 65... b2 {[%clk 0:00:05.8]} 66. Kg2 {[%clk 0:00:04.8]} 66...
Rc1 {[%clk 0:00:05.8]} 67. Rb5 {[%clk 0:00:05.7]} 0-1

[Event "Early-Titled-Tuesday-Blitz-August-29-2023"]
[Site "Chess.com"]
[Date "2023.08.29"]
[Round "7"]
[White "twofoxniel"]
[Black "betta2004"]
[Result "0-1"]
[WhiteElo "2649"]
[BlackElo "2552"]
[TimeControl "180+1"]
[EndTime "9:18:19 PDT"]
[Termination "betta2004 won by checkmate"]

1. e4 {[%clk 0:03:00.9]} 1... e5 {[%clk 0:02:58.2]} 2. Nf3 {[%clk 0:03:00.3]}
2... Nf6 {[%clk 0:02:58.2]} 3. Bc4 {[%clk 0:02:59.7]} 3... Bc5 {[%clk 0:02:57]}
4. Nxe5 {[%clk 0:02:53.8]} 4... O-O {[%clk 0:02:56.5]} 5. d4 {[%clk 0:02:52]}
5... Bb6 {[%clk 0:02:56.7]} 6. Nc3 {[%clk 0:02:47.5]} 6... d6 {[%clk 0:02:55.2]}
7. Nf3 {[%clk 0:02:47]} 7... Bg4 {[%clk 0:02:49.5]} 8. Be2 {[%clk 0:02:45.2]}
8... Nc6 {[%clk 0:02:48.3]} 9. d5 {[%clk 0:02:39.8]} 9... Ne7 {[%clk 0:02:45.1]}
10. O-O {[%clk 0:02:36.8]} 10... Ng6 {[%clk 0:02:44.5]} 11. h3 {[%clk
0:02:35.2]} 11... Bxf3 {[%clk 0:02:44.8]} 12. Bxf3 {[%clk 0:02:35.3]} 12... Re8
{[%clk 0:02:45.7]} 13. Re1 {[%clk 0:02:28.4]} 13... Nd7 {[%clk 0:02:44.3]} 14.
Be3 {[%clk 0:02:27.8]} 14... Ba5 {[%clk 0:02:41.7]} 15. Bd4 {[%clk 0:02:26.5]}
15... Nde5 {[%clk 0:02:40.7]} 16. Bh5 {[%clk 0:02:07.3]} 16... Qg5 {[%clk
0:02:40.3]} 17. Bxg6 {[%clk 0:02:07]} 17... Nxg6 {[%clk 0:02:34.7]} 18. Qg4
{[%clk 0:02:01.8]} 18... Qxg4 {[%clk 0:02:08.7]} 19. hxg4 {[%clk 0:02:01.6]}
19... Ne5 {[%clk 0:02:09.1]} 20. f3 {[%clk 0:02:01]} 20... Nc4 {[%clk
0:02:08.4]} 21. b3 {[%clk 0:01:55.7]} 21... Ne5 {[%clk 0:02:07.9]} 22. a3 {[%clk
0:01:55.7]} 22... c5 {[%clk 0:02:06.7]} 23. dxc6 {[%clk 0:01:51.9]} 23... Nxc6
{[%clk 0:02:06.3]} 24. Ne2 {[%clk 0:01:34.3]} 24... Bxe1 {[%clk 0:02:04.1]} 25.
Rxe1 {[%clk 0:01:34.5]} 25... Rac8 {[%clk 0:02:05]} 26. c4 {[%clk 0:01:33.4]}
26... a6 {[%clk 0:02:03.8]} 27. Rd1 {[%clk 0:01:32.2]} 27... Na5 {[%clk
0:02:02.4]} 28. Rd3 {[%clk 0:01:28]} 28... b5 {[%clk 0:02:02.5]} 29. cxb5 {[%clk
0:01:28.4]} 29... axb5 {[%clk 0:02:02.2]} 30. Nf4 {[%clk 0:01:25.3]} 30... Rc1+
{[%clk 0:01:58.9]} 31. Kh2 {[%clk 0:01:25]} 31... Rec8 {[%clk 0:01:57.2]} 32.
Bb6 {[%clk 0:01:15.7]} 32... Nb7 {[%clk 0:01:52.1]} 33. a4 {[%clk 0:01:16]}
33... bxa4 {[%clk 0:01:51.9]} 34. bxa4 {[%clk 0:01:16.9]} 34... Ra1 {[%clk
0:01:48.8]} 35. a5 {[%clk 0:01:11.6]} 35... Kf8 {[%clk 0:01:39.5]} 36. Kg3
{[%clk 0:01:08.6]} 36... Ke7 {[%clk 0:01:38.4]} 37. Nd5+ {[%clk 0:01:08.9]}
37... Kd7 {[%clk 0:01:38.6]} 38. Ne3 {[%clk 0:00:53]} 38... g6 {[%clk
0:01:34.5]} 39. e5 {[%clk 0:00:52.2]} 39... Ke6 {[%clk 0:01:29.9]} 40. exd6
{[%clk 0:00:52.4]} 40... Nxd6 {[%clk 0:01:30.8]} 41. Nd5 {[%clk 0:00:50.4]}
41... g5 {[%clk 0:01:26]} 42. Nc7+ {[%clk 0:00:48.6]} 42... Kd7 {[%clk
0:01:17.3]} 43. Nb5 {[%clk 0:00:48.5]} 43... Rc6 {[%clk 0:01:17.3]} 44. Nd4
{[%clk 0:00:47.8]} 44... Rcc1 {[%clk 0:01:03]} 45. Nf5 {[%clk 0:00:47.4]} 45...
Rd1 {[%clk 0:01:03.2]} 46. Rc3 {[%clk 0:00:36.9]} 46... Nxf5+ {[%clk 0:01:00.8]}
47. gxf5 {[%clk 0:00:37.8]} 47... Rd5 {[%clk 0:00:52.8]} 48. Rc7+ {[%clk
0:00:37.3]} 48... Ke8 {[%clk 0:00:51.8]} 49. Kg4 {[%clk 0:00:33.1]} 49... h6
{[%clk 0:00:49.8]} 50. Rc8+ {[%clk 0:00:29.8]} 50... Ke7 {[%clk 0:00:48.5]} 51.
Rc7+ {[%clk 0:00:30.2]} 51... Kf6 {[%clk 0:00:46.8]} 52. Rc6+ {[%clk 0:00:28.7]}
52... Kg7 {[%clk 0:00:46.7]} 53. a6 {[%clk 0:00:24.7]} 53... Rxa6 {[%clk
0:00:33.7]} 54. Kh5 {[%clk 0:00:20.5]} 54... Ra4 {[%clk 0:00:30.4]} 55. f6+
{[%clk 0:00:18.8]} 55... Kh7 {[%clk 0:00:29.5]} 56. g3 {[%clk 0:00:17.9]} 56...
Ra2 {[%clk 0:00:26.6]} 57. f4 {[%clk 0:00:16.2]} 57... Rh2+ {[%clk 0:00:24.4]}
58. Kg4 {[%clk 0:00:16.6]} 58... Kg6 {[%clk 0:00:24.3]} 59. Rc8 {[%clk
0:00:11.9]} 59... h5+ {[%clk 0:00:23.4]} 60. Kf3 {[%clk 0:00:12.6]} 60... gxf4
{[%clk 0:00:21]} 61. gxf4 {[%clk 0:00:11.7]} 61... Kxf6 {[%clk 0:00:21.3]} 62.
Ke4 {[%clk 0:00:12]} 62... Rb5 {[%clk 0:00:21]} 63. Bd4+ {[%clk 0:00:12.5]}
63... Ke6 {[%clk 0:00:19.4]} 64. Rc6+ {[%clk 0:00:13]} 64... Ke7 {[%clk
0:00:19.3]} 65. Rh6 {[%clk 0:00:11.2]} 65... h4 {[%clk 0:00:16.1]} 66. Bf6+
{[%clk 0:00:11.2]} 66... Kd7 {[%clk 0:00:15.6]} 67. Bxh4 {[%clk 0:00:11.8]}
67... f5+ {[%clk 0:00:14.7]} 68. Kd4 {[%clk 0:00:11.1]} 68... Rd2+ {[%clk
0:00:14.5]} 69. Ke3 {[%clk 0:00:10.6]} 69... Rc2 {[%clk 0:00:11.9]} 70. Rh7+
{[%clk 0:00:11]} 70... Ke6 {[%clk 0:00:12]} 71. Rh6+ {[%clk 0:00:11.5]} 71...
Kd5 {[%clk 0:00:11.9]} 72. Rf6 {[%clk 0:00:08.5]} 72... Rb3# {[%clk 0:00:11.6]}
0-1